fUST/lending_fUST_20240921
["ID","MTS","AMOUNT","RATE_DAILY","PERIOD"]
[338720309,1726897842590,-500.0,0.00014057,2]
[338720311,1726897842599,-602.21,0.00014057,2]
[338720313,1726897842608,-501.38490169,0.00014057,2]
[338720315,1726897842617,-500.0,0.00014057,2]
[338720317,1726897842627,-500.0,0.00014057,2]
[338720318,1726897842637,-500.0,0.00014057,2]
[338720319,1726897842647,-500.0,0.00014057,2]
[338720320,1726897842656,-500.0,0.00014057,2]
[338720321,1726897842665,-265.99,0.00014057,2]
[338720322,1726897842674,-500.0,0.00014057,2]
[338720323,1726897842684,-500.0,0.00014057,2]
[338720324,1726897842693,-501.46320218,0.00014057,2]
[338720325,1726897842702,-648.77,0.00014057,2]
[338720326,1726897842711,-500.0,0.00014057,2]
[338720327,1726897842721,-500.0,0.00014057,2]
[338720328,1726897842730,-631.29171719,0.00014057,2]
[338720329,1726897842739,-500.0,0.00014057,2]
[338720330,1726897842748,-500.0,0.00014057,2]
[338720331,1726897842757,-157.20338816,0.00014057,2]
[338720332,1726897842766,-500.0,0.00014057,2]
[338720333,1726897842775,-500.0,0.00014057,2]
[338720334,1726897842785,-500.0,0.00014057,2]
[338720336,1726897842794,-511.81465028,0.00014057,2]
[338720337,1726897842803,-500.0,0.00014057,2]
[338720339,1726897842812,-500.0,0.00014057,2]
[338720340,1726897842821,-500.0,0.00014057,2]
[338720341,1726897842830,-500.0,0.00014057,2]
[338720342,1726897842839,-500.0,0.00014057,2]
[338720343,1726897842849,-542.63,0.00014057,2]
[338720344,1726897842858,-336.37146251,0.00014057,2]
[338720345,1726897842867,-500.0,0.00014057,2]
[338720346,1726897842876,-502.69070751,0.00014057,2]
[338720347,1726897842886,-500.0,0.00014057,2]
[338720348,1726897842894,-500.0,0.00014057,2]
[338720349,1726897842904,-512.37431689,0.00014057,2]
[338720350,1726897842913,-500.0,0.00014057,2]
[338720352,1726897842922,-500.0,0.00014057,2]
[338720354,1726897842932,-529.39340058,0.00014057,2]
[338720356,1726897842941,-502.42907037,0.00014057,2]
[338720358,1726897842950,-500.0,0.00014057,2]
[338720360,1726897842958,-500.0,0.00014057,2]
[338720362,1726897842967,-500.0,0.00014057,2]
[338720364,1726897842977,-500.0,0.00014057,2]
[338720366,1726897842985,-500.0,0.00014057,2]
[338720368,1726897842994,-500.0,0.00014057,2]
[338720370,1726897843003,-500.0,0.00014057,2]
[338720372,1726897843013,-520.82,0.00014057,2]
[338720374,1726897843022,-500.76260836,0.00014057,2]
[338720376,1726897843031,-500.0,0.00014057,2]
[338720378,1726897843041,-648.78,0.00014057,2]
[338720380,1726897843050,-500.0,0.00014057,2]
[338720382,1726897843059,-501.60560376,0.00014057,2]
[338720383,1726897843067,-500.0,0.00014057,2]
[338720385,1726897843077,-500.0,0.00014057,2]
[338720387,1726897843086,-500.99201042,0.00014057,2]
[338720389,1726897843095,-518.75003145,0.00014057,2]
[338720391,1726897843105,-508.39753781,0.00014057,2]
[338720393,1726897843114,-500.0,0.00014057,2]
[338720395,1726897843123,-500.0,0.00014057,2]
[338720397,1726897843132,-500.0,0.00014057,2]
[338720399,1726897843141,-500.0,0.00014057,2]
[338720401,1726897843151,-590.08981235,0.00014057,2]
[338720403,1726897843160,-500.0,0.00014057,2]
[338720405,1726897843169,-500.0,0.00014057,2]
[338720406,1726897843178,-500.0,0.00014057,2]
[338720408,1726897843187,-500.0,0.00014057,2]
[338720410,1726897843196,-300.0,0.00014057,2]
[338720412,1726897843206,-500.0,0.00014057,2]
[338720414,1726897843216,-500.0,0.00014057,2]
[338720416,1726897843226,-500.0,0.00014057,2]
[338720418,1726897843235,-500.0,0.00014057,2]
[338720420,1726897843244,-500.0,0.00014057,2]
[338720422,1726897843254,-500.0,0.00014057,2]
[338720424,1726897843263,-500.0,0.00014057,2]
[338720426,1726897843272,-500.0,0.00014057,2]
[338720428,1726897843281,-500.0,0.00014057,2]
[338720430,1726897843290,-500.0,0.00014057,2]
[338720432,1726897843300,-415.66945261,0.00014057,2]
[338720434,1726897843309,-500.0,0.00014057,2]
[338720436,1726897843318,-500.0,0.00014057,2]
[338720438,1726897843327,-500.0,0.00014057,2]
[338720440,1726897843336,-627.24465092,0.00014057,2]
[338720442,1726897843345,-500.36331924,0.00014057,2]
[338720443,1726897843354,-500.0,0.00014057,2]
[338720445,1726897843363,-500.0,0.00014057,2]
[338720447,1726897843374,-500.0,0.00014057,2]
[338720449,1726897843383,-500.0,0.00014057,2]
[338720451,1726897843392,-503.12360472,0.00014057,2]
[338720453,1726897843401,-500.0,0.00014057,2]
[338720455,1726897843410,-209.33,0.00014057,2]
[338720457,1726897843419,-500.0,0.00014058,2]
[338720459,1726897843429,-500.0,0.00014058,2]
[338720461,1726897843442,-500.0,0.00014058,2]
[338720463,1726897843451,-500.0,0.00014058,2]
[338720465,1726897843460,-500.0,0.00014058,2]
[338720467,1726897843469,-500.0,0.00014058,2]
[338720469,1726897843479,-500.0,0.00014064,2]
[338720471,1726897843489,-500.0,0.00014065,2]
[338720473,1726897843498,-500.0,0.00014065,2]
[338720475,1726897843507,-635.3380466,0.00014065,2]
[338720477,1726897843517,-317.90964862,0.00014065,2]
[338720479,1726897843526,-500.0,0.00014065,2]
[338720481,1726897843535,-500.0,0.00014065,2]
[338720483,1726897843545,-257.54551651,0.00014065,2]
[338720485,1726897843554,-500.0,0.00014065,2]
[338720487,1726897843562,-500.0,0.00014065,2]
[338720489,1726897843572,-241.59984539,0.00014065,2]
[338720491,1726897843581,-209.71835299,0.00014065,2]
[338720493,1726897843590,-500.0,0.00014065,2]
[338720495,1726897843599,-350.54920991,0.00014065,2]
[338720497,1726897843609,-500.0,0.00014065,2]
[338720499,1726897843618,-500.0,0.00014065,2]
[338720501,1726897843627,-500.0,0.00014065,2]
[338720503,1726897843637,-549.68985745,0.00014065,2]
[338720505,1726897843646,-500.0,0.00014065,2]
[338720506,1726897843655,-232.60436916,0.00014065,2]
[338720508,1726897843665,-260.84554324,0.00014066,2]
[338720510,1726897843674,-1307.4,0.00014066,2]
[338720512,1726897843683,-1307.4,0.00014066,2]
[338720514,1726897843693,-1307.4,0.00014066,2]
[338720516,1726897843702,-1307.4,0.00014066,2]
[338720518,1726897843712,-1307.54303815,0.00014066,2]
[338720520,1726897843721,-861.78659535,0.0001421,2]
[338720522,1726897843730,-157.60850622,0.000143,2]
[338720524,1726897843740,-106806.237735,0.000143,2]
[338720526,1726897843749,-21950.4819333,0.000143,2]
[338720528,1726897843759,-10975.2409666,0.00014309,2]
[338720530,1726897843768,-10975.2409666,0.0001431,2]
[338720532,1726897843778,-32925.7228999,0.00014311,2]
[338720534,1726897843787,-586.98,0.00014318,2]
[338720536,1726897843797,-1294.55,0.00014318,2]
[338720538,1726897843806,-500.0,0.00014318,2]
[338720540,1726897843816,-500.0,0.00014318,2]
[338720542,1726897843825,-772.75,0.00014318,2]
[338720544,1726897843834,-500.0,0.00014318,2]
[338720546,1726897843843,-500.0,0.00014318,2]
[338720548,1726897843853,-234.78,0.00014318,2]
[338720550,1726897843862,-500.0,0.00014318,2]
[338720552,1726897843871,-500.0,0.00014318,2]
[338720554,1726897843881,-23939.33,0.00014318,2]
[338720556,1726897843890,-3406.28,0.00014318,2]
[338720558,1726897843899,-500.0,0.00014318,2]
[338720560,1726897843910,-500.0,0.00014319,2]
[338720562,1726897843921,-500.0,0.00014319,2]
[338720564,1726897843932,-500.0,0.00014319,2]
[338720566,1726897843943,-500.0,0.00014319,2]
[338720568,1726897843953,-500.0,0.00014319,2]
[338720570,1726897843962,-500.0,0.00014319,2]
[338720572,1726897843971,-758.08,0.00014319,2]
[338720574,1726897843981,-500.0,0.00014319,2]
[338720576,1726897843990,-500.0,0.00014319,2]
[338720578,1726897843999,-500.0,0.00014319,2]
[338720580,1726897844008,-500.0,0.00014319,2]
[338720582,1726897844017,-500.0,0.00014319,2]
[338720584,1726897844027,-500.0,0.00014319,2]
[338720586,1726897844036,-500.0,0.00014319,2]
[338720588,1726897844045,-500.0,0.00014319,2]
[338720590,1726897844054,-500.0,0.00014319,2]
[338720592,1726897844064,-569.62,0.00014319,2]
[338720594,1726897844073,-500.0,0.00014319,2]
[338720596,1726897844082,-563.57,0.00014319,2]
[338720598,1726897844091,-500.0,0.00014319,2]
[338720600,1726897844100,-500.0,0.00014319,2]
[338720602,1726897844109,-310.87690465,0.00014319,2]
[338720604,1726897844118,-534.91587501,0.00014319,2]
[338720606,1726897844128,-500.0,0.00014319,2]
[338720608,1726897844137,-500.0,0.00014319,2]
[338720610,1726897844146,-500.0,0.00014319,2]
[338720612,1726897844155,-500.0,0.00014319,2]
[338720614,1726897844165,-500.0,0.00014319,2]
[338720616,1726897844174,-500.0,0.00014319,2]
[338720618,1726897844184,-500.0,0.00014319,2]
[338720620,1726897844192,-500.0,0.00014319,2]
[338720622,1726897844202,-500.0,0.00014319,2]
[338720624,1726897844211,-500.0,0.00014319,2]
[338720626,1726897844220,-503.45819037,0.00014319,2]
[338720627,1726897844229,-210.43346884,0.00014319,2]
[338720629,1726897844238,-500.0,0.00014319,2]
[338720631,1726897844248,-500.0,0.00014319,2]
[338720633,1726897844257,-500.92641342,0.00014319,2]
[338720635,1726897844266,-500.0,0.00014319,2]
[338720637,1726897844276,-639.4,0.00014319,2]
[338720653,1726897844411,-185.55275421,0.00014319,2]
[338720655,1726897844422,-500.0,0.00014319,2]
[338720657,1726897844433,-500.0,0.00014319,2]
[338720659,1726897844446,-199.25246753,0.00014319,2]
[338720661,1726897844455,-551.26,0.00014319,2]
[338720663,1726897844464,-500.0,0.00014319,2]
[338720665,1726897844473,-500.0,0.00014319,2]
[338720667,1726897844482,-500.0,0.00014319,2]
[338720669,1726897844491,-500.0,0.00014319,2]
[338720671,1726897844501,-221.52679313,0.00014319,2]
[338720673,1726897844510,-339.72249121,0.00014319,2]
[338720675,1726897844519,-500.0,0.00014319,2]
[338720677,1726897844528,-500.0,0.00014319,2]
[338720679,1726897844537,-500.0,0.00014319,2]
[338720680,1726897844548,-500.0,0.00014319,2]
[338720683,1726897844558,-500.0,0.00014319,2]
[338720685,1726897844567,-500.0,0.00014319,2]
[338720686,1726897844576,-500.0,0.00014319,2]
[338720688,1726897844585,-500.0,0.00014319,2]
[338720690,1726897844594,-500.0,0.00014319,2]
[338720692,1726897844603,-500.0,0.00014319,2]
[338720694,1726897844613,-500.0,0.00014319,2]
[338720696,1726897844622,-500.21340804,0.00014319,2]
[338720698,1726897844631,-500.0,0.00014319,2]
[338720700,1726897844640,-500.0,0.00014319,2]
[338720702,1726897844650,-500.0,0.00014319,2]
[338720704,1726897844659,-500.0,0.00014319,2]
[338720706,1726897844668,-500.0,0.00014319,2]
[338720708,1726897844677,-500.0,0.00014319,2]
[338720710,1726897844690,-500.0,0.00014319,2]
[338720712,1726897844699,-500.0,0.00014319,2]
[338720714,1726897844708,-500.0,0.00014319,2]
[338720716,1726897844718,-500.0,0.00014319,2]
[338720718,1726897844728,-500.0,0.00014319,2]
[338720720,1726897844737,-500.0,0.00014319,2]
[338720722,1726897844747,-500.0,0.00014319,2]
[338720724,1726897844756,-308.81050334,0.00014319,2]
[338720726,1726897844765,-500.0,0.00014319,2]
[338720728,1726897844774,-500.0,0.00014319,2]
[338720730,1726897844785,-1276.8,0.00014319,2]
[338720732,1726897844795,-500.0,0.00014319,2]
[338720734,1726897844805,-500.0,0.00014319,2]
[338720736,1726897844816,-500.0,0.00014319,2]
[338720738,1726897844825,-500.0,0.00014319,2]
[338720740,1726897844836,-500.0,0.00014319,2]
[338720742,1726897844845,-500.0,0.0001432,2]
[338720744,1726897844856,-500.0,0.0001432,2]
[338720746,1726897844867,-179.55963272,0.0001432,2]
[338720748,1726897844878,-500.0,0.0001432,2]
[338720750,1726897844888,-500.0,0.0001432,2]
[338720753,1726897844899,-330.99372325,0.0001432,2]
[338720755,1726897844910,-500.0,0.0001432,2]
[338720757,1726897844921,-199.16257906,0.0001432,2]
[338720759,1726897844932,-500.0,0.0001432,2]
[338720761,1726897844944,-500.0,0.0001432,2]
[338720763,1726897844953,-240.9145416,0.0001432,2]
[338720765,1726897844963,-500.0,0.0001432,2]
[338720767,1726897844972,-500.0,0.0001432,2]
[338720769,1726897844981,-500.0,0.0001432,2]
[338720771,1726897844990,-500.0,0.0001432,2]
[338720772,1726897845000,-500.0,0.0001432,2]
[338720774,1726897845009,-500.0,0.0001432,2]
[338720776,1726897845018,-500.0,0.0001432,2]
[338720778,1726897845027,-500.0,0.0001432,2]
[338720780,1726897845036,-500.0,0.0001432,2]
[338720782,1726897845045,-342.47782136,0.0001432,2]
[338720784,1726897845056,-500.0,0.0001432,2]
[338720786,1726897845065,-500.0,0.0001432,2]
[338720788,1726897845074,-351.40327847,0.0001432,2]
[338720790,1726897845084,-397.42459905,0.0001432,2]
[338720792,1726897845093,-500.0,0.0001432,2]
[338720794,1726897845102,-500.0,0.0001432,2]
[338720796,1726897845111,-500.0,0.0001432,2]
[338720798,1726897845119,-500.0,0.0001432,2]
[338720800,1726897845128,-1057.54,0.0001432,2]
[338720802,1726897845138,-500.0,0.0001432,2]
[338720804,1726897845147,-500.0,0.0001432,2]
[338720806,1726897845157,-500.0,0.0001432,2]
[338720808,1726897845167,-500.0,0.0001432,2]
[338720810,1726897845177,-500.0,0.0001432,2]
[338720812,1726897845187,-500.0,0.0001432,2]
[338720814,1726897845196,-500.0,0.0001432,2]
[338720816,1726897845206,-500.0,0.0001432,2]
[338720818,1726897845215,-484.1896653,0.0001432,2]
[338720820,1726897845224,-500.0,0.0001432,2]
[338720821,1726897845233,-635.9,0.0001432,2]
[338720823,1726897845242,-500.0,0.0001432,2]
[338720824,1726897845252,-500.0,0.0001432,2]
[338720825,1726897845261,-500.0,0.0001432,2]
[338720826,1726897845270,-500.0,0.0001432,2]
[338720827,1726897845279,-500.0,0.0001432,2]
[338720828,1726897845289,-500.0,0.0001432,2]
[338720829,1726897845298,-500.0,0.0001432,2]
[338720830,1726897845307,-500.0,0.0001432,2]
[338720831,1726897845317,-528.25,0.0001432,2]
[338720832,1726897845327,-500.0,0.0001432,2]
[338720833,1726897845336,-500.0,0.0001432,2]
[338720834,1726897845345,-500.0,0.0001432,2]
[338720835,1726897845354,-500.0,0.0001432,2]
[338720837,1726897845364,-500.0,0.0001432,2]
[338720839,1726897845374,-508.43863048,0.0001432,2]
[338720841,1726897845383,-621.5272717,0.0001432,2]
[338720843,1726897845392,-500.0,0.0001432,2]
[338720845,1726897845402,-500.0,0.0001432,2]
[338720848,1726897845413,-500.0,0.0001432,2]
[338720850,1726897845423,-500.0,0.0001432,2]
[338720852,1726897845432,-500.0,0.0001432,2]
[338720854,1726897845444,-401.51580415,0.0001432,2]
[338720856,1726897845453,-500.0,0.0001432,2]
[338720858,1726897845462,-510.45171435,0.0001432,2]
[338720859,1726897845471,-500.0,0.0001432,2]
[338720862,1726897845482,-500.0,0.0001432,2]
[338720863,1726897845491,-500.0,0.0001432,2]
[338720866,1726897845500,-500.0,0.0001432,2]
[338720868,1726897845513,-500.0,0.0001432,2]
[338720870,1726897845523,-500.0,0.0001432,2]
[338720872,1726897845533,-500.0,0.0001432,2]
[338720874,1726897845543,-500.0,0.0001432,2]
[338720876,1726897845554,-557.36,0.0001432,2]
[338720878,1726897845563,-500.0,0.0001432,2]
[338720880,1726897845574,-431.20530052,0.0001432,2]
[338720883,1726897845585,-500.0,0.0001432,2]
[338720885,1726897845595,-500.0,0.0001432,2]
[338720887,1726897845607,-500.0,0.0001432,2]
[338720889,1726897845616,-909.12,0.0001432,2]
[338720891,1726897845626,-21950.4819333,0.00014321,2]
[338720893,1726897845635,-500.0,0.0001433,2]
[338720895,1726897845646,-500.0,0.0001433,2]
[338720897,1726897845657,-500.0,0.00014331,2]
[338720899,1726897845666,-518.82095985,0.00014331,2]
[338720902,1726897845677,-500.0,0.00014331,2]
[338720904,1726897845688,-500.0,0.00014331,2]
[338720906,1726897845699,-500.0,0.00014331,2]
[338720908,1726897845710,-503.8,0.00014331,2]
[338720910,1726897845721,-500.0,0.00014331,2]
[338720912,1726897845732,-504.37926488,0.00014331,2]
[338720914,1726897845742,-500.0,0.00014331,2]
[338720917,1726897845751,-500.0,0.00014331,2]
[338720920,1726897845761,-500.0,0.00014331,2]
[338720922,1726897845772,-500.0,0.00014331,2]
[338720925,1726897845783,-501.97950968,0.00014331,2]
[338720927,1726897845792,-500.0,0.00014331,2]
[338720929,1726897845803,-500.0,0.00014331,2]
[338720931,1726897845813,-511.59615971,0.00014331,2]
[338720933,1726897845823,-500.0,0.00014331,2]
[338720935,1726897845833,-281.28017977,0.00014331,2]
[338720937,1726897845843,-500.0,0.00014331,2]
[338720939,1726897845855,-500.0,0.00014331,2]
[338720941,1726897845865,-506.3492774,0.00014331,2]
[338720943,1726897845874,-500.0,0.00014331,2]
[338720945,1726897845883,-500.0,0.00014331,2]
[338720947,1726897845892,-500.0,0.00014331,2]
[338720949,1726897845901,-500.8318565,0.00014331,2]
[338720951,1726897845911,-528.87003683,0.00014331,2]
[338720953,1726897845920,-719.57,0.00014331,2]
[338720955,1726897845929,-500.47760326,0.00014331,2]
[338720957,1726897845939,-500.0,0.00014331,2]
[338720959,1726897845948,-500.0,0.00014331,2]
[338720961,1726897845957,-500.0,0.00014331,2]
[338720963,1726897845967,-384.95838713,0.00014331,2]
[338720965,1726897845977,-500.0,0.00014331,2]
[338720967,1726897845987,-500.0,0.00014331,2]
[338720969,1726897845996,-555.28750883,0.00014331,2]
[338720971,1726897846005,-500.0,0.00014331,2]
[338720973,1726897846014,-500.0,0.00014331,2]
[338720975,1726897846023,-500.0,0.00014331,2]
[338720977,1726897846033,-500.0,0.00014331,2]
[338720979,1726897846042,-500.0,0.00014331,2]
[338720981,1726897846051,-500.0,0.00014331,2]
[338720982,1726897846060,-500.0,0.00014331,2]
[338720984,1726897846070,-503.86863484,0.00014331,2]
[338720986,1726897846079,-500.0,0.00014331,2]
[338720988,1726897846089,-500.0,0.00014331,2]
[338720990,1726897846098,-502.31108353,0.00014331,2]
[338720993,1726897846109,-501.50321184,0.00014331,2]
[338720995,1726897846118,-500.0,0.00014331,2]
[338720997,1726897846128,-584.16866131,0.00014331,2]
[338720998,1726897846138,-501.4463052,0.00014331,2]
[338721000,1726897846149,-500.0,0.00014331,2]
[338721002,1726897846158,-500.0,0.00014331,2]
[338721004,1726897846167,-500.0,0.00014331,2]
[338721006,1726897846176,-501.17714478,0.00014331,2]
[338721008,1726897846187,-500.0,0.00014331,2]
[338721010,1726897846197,-500.0,0.00014331,2]
[338721012,1726897846206,-500.0,0.00014331,2]
[338721014,1726897846215,-500.0,0.00014331,2]
[338721016,1726897846226,-500.0,0.00014331,2]
[338721018,1726897846237,-500.0,0.00014331,2]
[338721020,1726897846247,-500.0,0.00014331,2]
[338721022,1726897846256,-586.96358796,0.00014331,2]
[338721024,1726897846266,-500.0,0.00014331,2]
[338721026,1726897846275,-332.04,0.00014331,2]
[338721028,1726897846285,-230.03,0.00014331,2]
[338721030,1726897846294,-159.43,0.00014331,2]
[338721032,1726897846303,-500.0,0.00014331,2]
[338721035,1726897846313,-500.0,0.00014331,2]
[338721037,1726897846323,-500.0,0.00014331,2]
[338721039,1726897846333,-500.0,0.00014331,2]
[338721041,1726897846342,-500.0,0.00014331,2]
[338721042,1726897846351,-500.0,0.00014331,2]
[338721044,1726897846360,-500.0,0.00014331,2]
[338721046,1726897846370,-500.0,0.00014331,2]
[338721048,1726897846379,-566.49898979,0.00014331,2]
[338721050,1726897846388,-500.0,0.00014331,2]
[338721052,1726897846399,-500.0,0.00014331,2]
[338721054,1726897846408,-500.0,0.00014331,2]
[338721056,1726897846419,-500.0,0.00014331,2]
[338721058,1726897846430,-200.0,0.00014331,2]
[338721060,1726897846443,-500.0,0.00014331,2]
[338721063,1726897846454,-500.0,0.00014331,2]
[338721065,1726897846464,-500.0,0.00014331,2]
[338721066,1726897846473,-620.43,0.00014331,2]
[338721068,1726897846482,-500.0,0.00014331,2]
[338721070,1726897846492,-500.0,0.00014331,2]
[338721072,1726897846504,-500.0,0.00014331,2]
[338721074,1726897846514,-682.91,0.00014331,2]
[338721076,1726897846524,-500.0,0.00014331,2]
[338721078,1726897846534,-500.0,0.00014331,2]
[338721080,1726897846545,-500.0,0.00014331,2]
[338721082,1726897846555,-682.46,0.00014331,2]
[338721084,1726897846565,-664.73,0.00014331,2]
[338721086,1726897846575,-501.11889945,0.00014331,2]
[338721088,1726897846587,-500.0,0.00014331,2]
[338721091,1726897846599,-500.0,0.00014331,2]
[338721093,1726897846610,-730.75,0.00014331,2]
[338721095,1726897846619,-500.0,0.00014331,2]
[338721097,1726897846632,-500.0,0.00014331,2]
[338721099,1726897846644,-500.0,0.00014331,2]
[338721101,1726897846655,-500.0,0.00014331,2]
[338721103,1726897846666,-500.0,0.00014331,2]
[338721105,1726897846678,-500.0,0.00014331,2]
[338721108,1726897846689,-984.7,0.00014331,2]
[338721110,1726897846700,-640.29,0.00014331,2]
[338721112,1726897846710,-500.0,0.00014331,2]
[338721114,1726897846720,-500.0,0.00014331,2]
[338721116,1726897846730,-500.0,0.00014331,2]
[338721118,1726897846739,-500.0,0.00014331,2]
[338721120,1726897846750,-586.39386064,0.00014331,2]
[338721122,1726897846759,-500.0,0.00014331,2]
[338721124,1726897846769,-500.0,0.00014331,2]
[338721126,1726897846779,-501.08490612,0.00014331,2]
[338721128,1726897846788,-500.0,0.00014331,2]
[338721130,1726897846797,-500.0,0.00014331,2]
[338721132,1726897846807,-500.0,0.00014331,2]
[338721134,1726897846816,-500.0,0.00014331,2]
[338721135,1726897846826,-500.0,0.00014331,2]
[338721137,1726897846835,-500.0,0.00014331,2]
[338721139,1726897846845,-500.0,0.00014331,2]
[338721141,1726897846854,-369.0961199,0.00014331,2]
[338721143,1726897846865,-602.21,0.00014331,2]
[338721146,1726897846876,-500.0,0.00014331,2]
[338721148,1726897846888,-500.0,0.00014331,2]
[338721150,1726897846899,-501.44873453,0.00014331,2]
[338721152,1726897846909,-500.0,0.00014331,2]
[338721154,1726897846919,-500.0,0.00014331,2]
[338721156,1726897846931,-500.0,0.00014331,2]
[338721158,1726897846940,-500.0,0.00014331,2]
[338721160,1726897846951,-648.77,0.00014331,2]
[338721162,1726897846961,-500.0,0.00014331,2]
[338721164,1726897846970,-500.0,0.00014331,2]
[338721166,1726897846981,-500.0,0.00014331,2]
[338721168,1726897846990,-500.0,0.00014331,2]
[338721170,1726897846999,-500.0,0.00014331,2]
[338721172,1726897847008,-500.0,0.00014331,2]
[338721174,1726897847017,-210.33996282,0.00014331,2]
[338721176,1726897847027,-500.0,0.00014331,2]
[338721178,1726897847036,-500.0,0.00014331,2]
[338721180,1726897847045,-500.0,0.00014331,2]
[338721182,1726897847054,-472.07,0.00014331,2]
[338721184,1726897847063,-507.69635395,0.00014331,2]
[338721186,1726897847072,-500.0,0.00014331,2]
[338721187,1726897847082,-500.0,0.00014331,2]
[338721190,1726897847091,-500.0,0.00014331,2]
[338721192,1726897847101,-500.0,0.00014331,2]
[338721193,1726897847110,-500.0,0.00014331,2]
[338721195,1726897847119,-520.82,0.00014331,2]
[338721197,1726897847129,-500.0,0.00014331,2]
[338721199,1726897847138,-500.0,0.00014331,2]
[338721201,1726897847150,-500.0,0.00014331,2]
[338721203,1726897847159,-500.0,0.00014331,2]
[338721205,1726897847168,-219.68260676,0.00014331,2]
[338721207,1726897847177,-500.0,0.00014331,2]
[338721209,1726897847186,-500.0,0.00014331,2]
[338721211,1726897847196,-500.0,0.00014331,2]
[338721213,1726897847205,-500.0,0.00014331,2]
[338721214,1726897847214,-500.0,0.00014331,2]
[338721216,1726897847224,-177.70138424,0.00014331,2]
[338721218,1726897847233,-500.0,0.00014331,2]
[338721220,1726897847242,-500.0,0.00014331,2]
[338721222,1726897847251,-500.0,0.00014331,2]
[338721224,1726897847260,-310.95561112,0.00014331,2]
[338721226,1726897847270,-153.63424463,0.00014331,2]
[338721228,1726897847282,-500.0,0.00014331,2]
[338721230,1726897847294,-500.0,0.00014331,2]
[338721233,1726897847306,-500.0,0.00014331,2]
[338721235,1726897847315,-500.0,0.00014331,2]
[338721237,1726897847325,-10975.2409666,0.00014332,2]
[338721239,1726897847335,-151.0,0.00014332,2]
[338721241,1726897847345,-151.0,0.00014332,2]
[338721243,1726897847356,-500.0,0.00014342,2]
[338721245,1726897847368,-500.0,0.00014342,2]
[338721248,1726897847379,-500.0,0.00014342,2]
[338721250,1726897847388,-502.79299487,0.00014342,2]
[338721252,1726897847399,-457.05817454,0.00014342,2]
[338721254,1726897847409,-500.0,0.00014342,2]
[338721256,1726897847420,-501.85915037,0.00014342,2]
[338721258,1726897847433,-500.0,0.00014373,2]
[338721260,1726897847446,-176.2442662,0.00014373,2]
[338721262,1726897847456,-500.0,0.00014373,2]
[338721277,1726897847588,-500.0,0.00014373,2]
[338721280,1726897847599,-500.0,0.00014373,2]
[338721282,1726897847609,-500.0,0.00014373,2]
[338721284,1726897847618,-500.0,0.00014373,2]
[338721286,1726897847630,-500.0,0.00014373,2]
[338721288,1726897847642,-230.5214922,0.00014373,2]
[338721290,1726897847651,-500.0,0.00014373,2]
[338721292,1726897847661,-500.0,0.00014373,2]
[338721294,1726897847670,-160.11865743,0.00014373,2]